[Event "Late-Titled-Tuesday-Blitz-December-26-2023"]
[Site "Chess.com"]
[Date "2023.12.26"]
[Round "7"]
[White "Aguiar94"]
[Black "Maitreia"]
[Result "0-1"]
[WhiteElo "2571"]
[BlackElo "2722"]
[TimeControl "180+1"]
[EndTime "15:17:51 PST"]
[Termination "Maitreia won on time"]

1. e4 {[%clk 0:03:00.9]} 1... c5 {[%clk 0:03:00.2]} 2. Nf3 {[%clk 0:02:58.8]}
2... g6 {[%clk 0:03:00.2]} 3. d4 {[%clk 0:02:56.6]} 3... cxd4 {[%clk 0:03:01.1]}
4. Nxd4 {[%clk 0:02:57.4]} 4... Bg7 {[%clk 0:03:01.1]} 5. Nc3 {[%clk 0:02:58]}
5... Nc6 {[%clk 0:03:01.8]} 6. Nb3 {[%clk 0:02:58.1]} 6... Bxc3+ {[%clk
0:02:59.8]} 7. bxc3 {[%clk 0:02:59]} 7... Nf6 {[%clk 0:03:00.4]} 8. Bd3 {[%clk
0:02:52.4]} 8... O-O {[%clk 0:03:00.2]} 9. c4 {[%clk 0:02:47.8]} 9... b6 {[%clk
0:02:58.4]} 10. Bb2 {[%clk 0:02:46.3]} 10... d6 {[%clk 0:02:58.7]} 11. O-O
{[%clk 0:02:44.7]} 11... Be6 {[%clk 0:02:57.4]} 12. f4 {[%clk 0:02:42]} 12...
Na5 {[%clk 0:02:51.4]} 13. Nxa5 {[%clk 0:02:38.3]} 13... bxa5 {[%clk 0:02:52.3]}
14. Bd4 {[%clk 0:02:38.4]} 14... Qc7 {[%clk 0:02:47.2]} 15. Qe2 {[%clk
0:02:34.2]} 15... Rfc8 {[%clk 0:02:45.3]} 16. c5 {[%clk 0:02:31.2]} 16... dxc5
{[%clk 0:02:41.5]} 17. Be5 {[%clk 0:02:31.7]} 17... Qc6 {[%clk 0:02:32]} 18. c4
{[%clk 0:02:28.3]} 18... Bg4 {[%clk 0:01:58.5]} 19. Qe3 {[%clk 0:02:26.5]} 19...
Rd8 {[%clk 0:01:55.1]} 20. h3 {[%clk 0:02:24.9]} 20... Bc8 {[%clk 0:01:44.4]}
21. f5 {[%clk 0:02:20]} 21... Bb7 {[%clk 0:01:42.3]} 22. Rae1 {[%clk 0:02:19.3]}
22... Rxd3 {[%clk 0:01:34]} 23. Qxd3 {[%clk 0:02:18.4]} 23... Nxe4 {[%clk
0:01:34.7]} 24. fxg6 {[%clk 0:02:09.3]} 24... hxg6 {[%clk 0:01:35.6]} 25. Rd1
{[%clk 0:01:56.2]} 25... f6 {[%clk 0:01:27.8]} 26. Ba1 {[%clk 0:01:36.2]} 26...
Kf7 {[%clk 0:01:23.1]} 27. Rfe1 {[%clk 0:01:23.9]} 27... Nf2 {[%clk 0:00:58.8]}
28. Kxf2 {[%clk 0:01:15.5]} 28... Qxg2+ {[%clk 0:00:57.4]} 29. Ke3 {[%clk
0:01:16.1]} 29... Rh8 {[%clk 0:00:42.2]} 30. Rh1 {[%clk 0:01:05.3]} 30... Qg3+
{[%clk 0:00:25.4]} 31. Kd2 {[%clk 0:01:00.8]} 31... Qf2+ {[%clk 0:00:22.2]} 32.
Kc3 {[%clk 0:00:53.8]} 32... Bxh1 {[%clk 0:00:19.9]} 33. Rxh1 {[%clk 0:00:54.3]}
33... Qxa2 {[%clk 0:00:18]} 34. Bb2 {[%clk 0:00:43.1]} 34... a4 {[%clk
0:00:17.7]} 35. Qd5+ {[%clk 0:00:37.4]} 35... Kg7 {[%clk 0:00:17.3]} 36. Qb7
{[%clk 0:00:37.7]} 36... Kf7 {[%clk 0:00:11.3]} 37. Qd5+ {[%clk 0:00:22.6]}
37... Kg7 {[%clk 0:00:11.2]} 38. Qb7 {[%clk 0:00:16.9]} 38... Kf7 {[%clk
0:00:11.4]} 39. h4 {[%clk 0:00:17.4]} 39... a3 {[%clk 0:00:10.9]} 40. Bc1 {[%clk
0:00:16.9]} 40... Qe2 {[%clk 0:00:10]} 41. Bd2 {[%clk 0:00:14.1]} 41... Qe5+
{[%clk 0:00:08.7]} 42. Kb3 {[%clk 0:00:11.3]} 42... Rd8 {[%clk 0:00:09.6]} 43.
Bc3 {[%clk 0:00:10.5]} 43... Rd3 {[%clk 0:00:09.1]} 44. Rc1 {[%clk 0:00:03.6]}
44... a2 {[%clk 0:00:09.7]} 45. Qa6 {[%clk 0:00:01.4]} 45... Qe3 {[%clk
0:00:09.3]} 46. Rc2 {[%clk 0:00:01]} 46... Rd6 {[%clk 0:00:05.9]} 0-1

[Event "Late-Titled-Tuesday-Blitz-December-26-2023"]
[Site "Chess.com"]
[Date "2023.12.26"]
[Round "7"]
[White "DinaBelenkaya"]
[Black "LeonardoL2005"]
[Result "0-1"]
[WhiteElo "2385"]
[BlackElo "2283"]
[TimeControl "180+1"]
[EndTime "15:17:52 PST"]
[Termination "LeonardoL2005 won by checkmate"]

1. Nf3 {[%clk 0:03:00.2]} 1... Nf6 {[%clk 0:02:57.8]} 2. g3 {[%clk 0:03:00.4]}
2... g6 {[%clk 0:02:58.4]} 3. d3 {[%clk 0:03:00.8]} 3... Bg7 {[%clk 0:02:58.8]}
4. e4 {[%clk 0:03:01.4]} 4... d6 {[%clk 0:02:58.2]} 5. Bg2 {[%clk 0:03:01.8]}
5... O-O {[%clk 0:02:58.8]} 6. O-O {[%clk 0:03:02.2]} 6... Nc6 {[%clk
0:02:59.1]} 7. c3 {[%clk 0:03:02.7]} 7... Bg4 {[%clk 0:02:57.6]} 8. Re1 {[%clk
0:03:03]} 8... e5 {[%clk 0:02:53.4]} 9. h3 {[%clk 0:03:02.8]} 9... Bxf3 {[%clk
0:02:53]} 10. Bxf3 {[%clk 0:03:02.6]} 10... Nd7 {[%clk 0:02:53.7]} 11. h4 {[%clk
0:02:58.5]} 11... f5 {[%clk 0:02:42.7]} 12. exf5 {[%clk 0:02:59.4]} 12... gxf5
{[%clk 0:02:43.1]} 13. Bd5+ {[%clk 0:02:59.8]} 13... Kh8 {[%clk 0:02:41.8]} 14.
Bg5 {[%clk 0:03:00.1]} 14... Bf6 {[%clk 0:02:42.4]} 15. Qh5 {[%clk 0:02:59.2]}
15... Qe7 {[%clk 0:02:39.2]} 16. Kg2 {[%clk 0:02:57.6]} 16... Qg7 {[%clk
0:02:35.7]} 17. Nd2 {[%clk 0:02:51.9]} 17... Ne7 {[%clk 0:02:35.2]} 18. Be6
{[%clk 0:02:50.9]} 18... Nc5 {[%clk 0:02:33.4]} 19. Bc4 {[%clk 0:02:49.4]} 19...
d5 {[%clk 0:02:33.2]} 20. d4 {[%clk 0:02:18.7]} 20... Ne4 {[%clk 0:02:19.3]} 21.
Nxe4 {[%clk 0:02:09.6]} 21... fxe4 {[%clk 0:02:16.5]} 22. Bb3 {[%clk 0:01:45.8]}
22... exd4 {[%clk 0:02:13.7]} 23. cxd4 {[%clk 0:01:40.8]} 23... Bxd4 {[%clk
0:02:10.9]} 24. Re2 {[%clk 0:01:40.8]} 24... Bf6 {[%clk 0:02:08.4]} 25. Kh2
{[%clk 0:01:10.7]} 25... Bxg5 {[%clk 0:02:07.2]} 26. hxg5 {[%clk 0:01:10.6]}
26... c6 {[%clk 0:01:52.1]} 27. Kg2 {[%clk 0:01:09.1]} 27... Rf5 {[%clk
0:01:48.5]} 28. Rh1 {[%clk 0:01:03.8]} 28... Raf8 {[%clk 0:01:48.3]} 29. Bd1
{[%clk 0:00:55]} 29... Rxg5 {[%clk 0:01:44.9]} 30. Qh3 {[%clk 0:00:54.2]} 30...
Ng6 {[%clk 0:01:42.5]} 31. Kf1 {[%clk 0:00:50.1]} 31... Ne5 {[%clk 0:01:40.6]}
32. Re3 {[%clk 0:00:36.4]} 32... Nc4 {[%clk 0:01:28.2]} 33. Rb3 {[%clk
0:00:32.5]} 33... Nd2+ {[%clk 0:01:24.1]} 34. Ke1 {[%clk 0:00:32.5]} 34... Nxb3
{[%clk 0:01:25]} 35. axb3 {[%clk 0:00:32.8]} 35... e3 {[%clk 0:01:17.4]} 36. f3
{[%clk 0:00:19.8]} 36... Rxg3 {[%clk 0:01:12.9]} 37. Qf1 {[%clk 0:00:14.9]}
37... Qxb2 {[%clk 0:01:08.7]} 38. Qe2 {[%clk 0:00:13]} 38... Qxe2+ {[%clk
0:01:00.6]} 39. Bxe2 {[%clk 0:00:13.9]} 39... d4 {[%clk 0:00:59.5]} 40. Rh4
{[%clk 0:00:12.9]} 40... c5 {[%clk 0:00:59.4]} 41. Kd1 {[%clk 0:00:12.5]} 41...
Rg1+ {[%clk 0:00:58.1]} 42. Kc2 {[%clk 0:00:12.6]} 42... Rg2 {[%clk 0:00:55.6]}
43. Kd3 {[%clk 0:00:12.7]} 43... b6 {[%clk 0:00:34.4]} 44. f4 {[%clk 0:00:09.9]}
44... Rf2 {[%clk 0:00:32.9]} 45. Bh5 {[%clk 0:00:06.1]} 45... R2xf4 {[%clk
0:00:28.7]} 46. Rh1 {[%clk 0:00:02.4]} 46... Rf2 {[%clk 0:00:27.2]} 47. Bg6
{[%clk 0:00:02.1]} 47... h6 {[%clk 0:00:23]} 48. Be4 {[%clk 0:00:01.7]} 48...
Rd2+ {[%clk 0:00:21]} 49. Kc4 {[%clk 0:00:01.8]} 49... Rf6 {[%clk 0:00:21.6]}
50. Kd5 {[%clk 0:00:01.6]} 50... e2 {[%clk 0:00:19.8]} 51. Re1 {[%clk
0:00:01.7]} 51... Rf2 {[%clk 0:00:18.8]} 52. Ke5 {[%clk 0:00:01.8]} 52... Rd1
{[%clk 0:00:19.3]} 53. Rxd1 {[%clk 0:00:02.1]} 53... exd1=Q {[%clk 0:00:19.8]}
54. Kd6 {[%clk 0:00:03]} 54... Qh5 {[%clk 0:00:19.2]} 55. Kc7 {[%clk 0:00:03.9]}
55... Rf6 {[%clk 0:00:16.9]} 56. Kb8 {[%clk 0:00:04.8]} 56... Qf7 {[%clk
0:00:16.1]} 57. Bb7 {[%clk 0:00:05.1]} 57... Qg7 {[%clk 0:00:15.8]} 58. Kxa7
{[%clk 0:00:05.4]} 58... Rf7 {[%clk 0:00:15.3]} 59. Ka6 {[%clk 0:00:06.3]} 59...
Rxb7 {[%clk 0:00:15.6]} 60. b4 {[%clk 0:00:07]} 60... Qd7 {[%clk 0:00:14.5]} 61.
b5 {[%clk 0:00:06.7]} 61... Ra7+ {[%clk 0:00:14.7]} 62. Kxb6 {[%clk 0:00:07.4]}
62... Qc7# {[%clk 0:00:14.2]} 0-1

[Event "Late-Titled-Tuesday-Blitz-December-26-2023"]
[Site "Chess.com"]
[Date "2023.12.26"]
[Round "7"]
[White "bazar-wokzal"]
[Black "dosto07"]
[Result "1-0"]
[WhiteElo "2653"]
[BlackElo "2528"]
[TimeControl "180+1"]
[EndTime "15:17:54 PST"]
[Termination "bazar-wokzal won on time"]

1. e4 {[%clk 0:03:00.9]} 1... e5 {[%clk 0:02:59.7]} 2. Bc4 {[%clk 0:02:59.4]}
2... Nc6 {[%clk 0:02:57.3]} 3. f4 {[%clk 0:02:59.3]} 3... Bc5 {[%clk 0:02:51.1]}
4. Nf3 {[%clk 0:02:58.8]} 4... Nf6 {[%clk 0:02:32.7]} 5. Nc3 {[%clk 0:02:58.5]}
5... exf4 {[%clk 0:02:31.3]} 6. d4 {[%clk 0:02:57.3]} 6... Bb4 {[%clk
0:02:30.8]} 7. e5 {[%clk 0:02:57.2]} 7... Ne4 {[%clk 0:02:21.1]} 8. O-O {[%clk
0:02:51.1]} 8... Nxc3 {[%clk 0:02:13.7]} 9. bxc3 {[%clk 0:02:48.2]} 9... Bxc3
{[%clk 0:02:14]} 10. Bxf4 {[%clk 0:02:33.2]} 10... Bxa1 {[%clk 0:02:07.5]} 11.
Qxa1 {[%clk 0:02:23.3]} 11... O-O {[%clk 0:02:07.2]} 12. d5 {[%clk 0:02:17.9]}
12... Ne7 {[%clk 0:01:56.2]} 13. d6 {[%clk 0:02:10]} 13... Ng6 {[%clk
0:01:54.3]} 14. Bg5 {[%clk 0:02:01.2]} 14... Qe8 {[%clk 0:01:54.5]} 15. dxc7
{[%clk 0:01:59.9]} 15... b5 {[%clk 0:01:52.3]} 16. Bd5 {[%clk 0:01:59.2]} 16...
Ba6 {[%clk 0:01:42.9]} 17. Bxa8 {[%clk 0:01:57.4]} 17... Qxa8 {[%clk 0:01:42.2]}
18. Qd4 {[%clk 0:01:54.2]} 18... Qc6 {[%clk 0:01:39.9]} 19. Qd6 {[%clk 0:01:46]}
19... Bb7 {[%clk 0:01:28.4]} 20. Qxc6 {[%clk 0:01:42.2]} 20... Bxc6 {[%clk
0:01:28.2]} 21. Bd8 {[%clk 0:01:38.8]} 21... Bb7 {[%clk 0:01:22.4]} 22. Rb1
{[%clk 0:01:25.3]} 22... a6 {[%clk 0:01:08.2]} 23. a4 {[%clk 0:01:24]} 23... Nf4
{[%clk 0:01:04.8]} 24. axb5 {[%clk 0:01:21.2]} 24... Ne2+ {[%clk 0:00:53.1]} 25.
Kf2 {[%clk 0:01:17.6]} 25... Nc3 {[%clk 0:00:54]} 26. bxa6 {[%clk 0:01:15.1]}
26... Bxa6 {[%clk 0:00:40.4]} 27. Rb6 {[%clk 0:01:09.1]} 27... Bc8 {[%clk
0:00:22.3]} 28. Rb8 {[%clk 0:01:08.2]} 28... Ba6 {[%clk 0:00:18.7]} 29. Nd4
{[%clk 0:00:53.3]} 29... Nd5 {[%clk 0:00:15.5]} 30. Nf5 {[%clk 0:00:47.2]} 30...
Nxc7 {[%clk 0:00:12]} 31. Ne7+ {[%clk 0:00:43.6]} 31... Kh8 {[%clk 0:00:12.1]}
32. Bxc7 {[%clk 0:00:43.7]} 32... Rxb8 {[%clk 0:00:12]} 33. Bxb8 {[%clk
0:00:44.1]} 33... Bb7 {[%clk 0:00:11.2]} 34. g4 {[%clk 0:00:43.2]} 34... h6
{[%clk 0:00:10.7]} 35. h4 {[%clk 0:00:42.1]} 35... Kh7 {[%clk 0:00:11]} 36. Ke3
{[%clk 0:00:39.2]} 36... g6 {[%clk 0:00:10.4]} 37. g5 {[%clk 0:00:37.2]} 37...
Kg7 {[%clk 0:00:10.1]} 38. Bd6 {[%clk 0:00:35.6]} 38... hxg5 {[%clk 0:00:10]}
39. hxg5 {[%clk 0:00:35.6]} 39... Ba6 {[%clk 0:00:09]} 40. Kd4 {[%clk
0:00:35.3]} 40... Bb7 {[%clk 0:00:08.9]} 41. Kc5 {[%clk 0:00:35.5]} 41... Bf3
{[%clk 0:00:09.2]} 42. Kb6 {[%clk 0:00:35.2]} 42... Be4 {[%clk 0:00:09.6]} 43.
c4 {[%clk 0:00:34.3]} 43... Bf3 {[%clk 0:00:09.9]} 44. c5 {[%clk 0:00:34.2]}
44... Be4 {[%clk 0:00:10]} 45. Kc7 {[%clk 0:00:34.1]} 45... Bf5 {[%clk
0:00:06.2]} 46. Nxf5+ {[%clk 0:00:33.3]} 46... gxf5 {[%clk 0:00:06.6]} 47. Kxd7
{[%clk 0:00:32.9]} 47... f4 {[%clk 0:00:06.8]} 48. c6 {[%clk 0:00:33.1]} 48...
f3 {[%clk 0:00:06.8]} 49. Bc5 {[%clk 0:00:33.2]} 49... Kg6 {[%clk 0:00:05.9]}
50. c7 {[%clk 0:00:33]} 50... Kxg5 {[%clk 0:00:06.1]} 51. c8=Q {[%clk
0:00:33.1]} 51... Kg4 {[%clk 0:00:06.8]} 52. Qg8+ {[%clk 0:00:26.6]} 52... Kf4
{[%clk 0:00:05.2]} 53. Kd6 {[%clk 0:00:24.7]} 53... Ke4 {[%clk 0:00:03.7]} 54.
Qxf7 {[%clk 0:00:23.9]} 54... f2 {[%clk 0:00:03.9]} 55. e6 {[%clk 0:00:24.4]}
55... f1=Q {[%clk 0:00:02.2]} 56. Qg6+ {[%clk 0:00:16]} 1-0

[Event "Late-Titled-Tuesday-Blitz-December-26-2023"]
[Site "Chess.com"]
[Date "2023.12.26"]
[Round "7"]
[White "frequentblunders"]
[Black "gxbg2000"]
[Result "0-1"]
[WhiteElo "2103"]
[BlackElo "2006"]
[TimeControl "180+1"]
[EndTime "15:17:54 PST"]
[Termination "gxbg2000 won on time"]

1. d3 {[%clk 0:02:58.8]} 1... e5 {[%clk 0:02:58.6]} 2. f4 {[%clk 0:02:59.7]}
2... exf4 {[%clk 0:02:57]} 3. Bxf4 {[%clk 0:03:00.6]} 3... Nf6 {[%clk
0:02:51.9]} 4. Nf3 {[%clk 0:03:00.9]} 4... Be7 {[%clk 0:02:51.6]} 5. Nc3 {[%clk
0:03:01]} 5... O-O {[%clk 0:02:51.7]} 6. e4 {[%clk 0:03:00.8]} 6... d6 {[%clk
0:02:51.5]} 7. d4 {[%clk 0:03:00.9]} 7... Bg4 {[%clk 0:02:51.4]} 8. Bd3 {[%clk
0:03:00.3]} 8... Nbd7 {[%clk 0:02:51.6]} 9. O-O {[%clk 0:02:57.5]} 9... a6
{[%clk 0:02:50.9]} 10. h3 {[%clk 0:02:56.8]} 10... Bh5 {[%clk 0:02:50.4]} 11. a4
{[%clk 0:02:56.6]} 11... Rc8 {[%clk 0:02:48.7]} 12. Qd2 {[%clk 0:02:52.1]} 12...
Bg6 {[%clk 0:02:48.1]} 13. Rae1 {[%clk 0:02:52.2]} 13... Re8 {[%clk 0:02:47.4]}
14. g4 {[%clk 0:02:50.3]} 14... Nf8 {[%clk 0:02:44.3]} 15. d5 {[%clk 0:02:45.3]}
15... N8d7 {[%clk 0:02:41.2]} 16. Nd4 {[%clk 0:02:44]} 16... Bf8 {[%clk
0:02:40.2]} 17. Nf5 {[%clk 0:02:44]} 17... Ne5 {[%clk 0:02:39.8]} 18. Ne2 {[%clk
0:02:35.5]} 18... Nfd7 {[%clk 0:02:37]} 19. Neg3 {[%clk 0:02:30.9]} 19... c5
{[%clk 0:02:26.3]} 20. c4 {[%clk 0:02:28.5]} 20... Rb8 {[%clk 0:02:21.1]} 21. b3
{[%clk 0:02:25.3]} 21... Qb6 {[%clk 0:02:16.3]} 22. Be2 {[%clk 0:02:17.8]} 22...
Qxb3 {[%clk 0:01:50.3]} 23. Rb1 {[%clk 0:02:07.2]} 23... Qxa4 {[%clk 0:01:46.3]}
24. Ra1 {[%clk 0:02:07.3]} 24... Qb4 {[%clk 0:01:45]} 25. Qc2 {[%clk 0:02:03.6]}
25... Qb6 {[%clk 0:01:41.2]} 26. Rfb1 {[%clk 0:01:59.8]} 26... Qc7 {[%clk
0:01:41]} 27. h4 {[%clk 0:01:57.5]} 27... Bxf5 {[%clk 0:01:39]} 28. Nxf5 {[%clk
0:01:47.2]} 28... g6 {[%clk 0:01:36.8]} 29. Nh6+ {[%clk 0:01:46.4]} 29... Bxh6
{[%clk 0:01:32.1]} 30. Bxh6 {[%clk 0:01:47.3]} 30... Qd8 {[%clk 0:01:28.7]} 31.
Bg5 {[%clk 0:01:43.4]} 31... f6 {[%clk 0:01:28.8]} 32. Bf4 {[%clk 0:01:41.4]}
32... Qe7 {[%clk 0:01:22.2]} 33. Rb3 {[%clk 0:01:39.9]} 33... g5 {[%clk
0:01:09.9]} 34. Bg3 {[%clk 0:01:32.1]} 34... Ng6 {[%clk 0:01:05.5]} 35. hxg5
{[%clk 0:01:16]} 35... fxg5 {[%clk 0:01:03.8]} 36. Bf3 {[%clk 0:01:10]} 36...
Nde5 {[%clk 0:01:01.5]} 37. Re1 {[%clk 0:01:00.4]} 37... Rf8 {[%clk 0:00:59.3]}
38. Qg2 {[%clk 0:00:50.2]} 38... Rf7 {[%clk 0:00:54.3]} 39. Ree3 {[%clk
0:00:44.5]} 39... b5 {[%clk 0:00:53]} 40. Be2 {[%clk 0:00:41.9]} 40... b4 {[%clk
0:00:51]} 41. Rb1 {[%clk 0:00:35.1]} 41... a5 {[%clk 0:00:50.4]} 42. Ra1 {[%clk
0:00:35.1]} 42... Ra8 {[%clk 0:00:46.3]} 43. Bd1 {[%clk 0:00:34.8]} 43... Qd7
{[%clk 0:00:43.4]} 44. Ba4 {[%clk 0:00:33.8]} 44... Qxg4 {[%clk 0:00:41.7]} 45.
Bc6 {[%clk 0:00:21.3]} 45... Raa7 {[%clk 0:00:36.9]} 46. Ba4 {[%clk 0:00:12.5]}
46... Nxc4 {[%clk 0:00:33.7]} 47. Re2 {[%clk 0:00:07]} 47... Nce5 {[%clk
0:00:28.3]} 48. Rf2 {[%clk 0:00:03.4]} 48... Nf3+ {[%clk 0:00:20.7]} 49. Kh1
{[%clk 0:00:03.3]} 49... Nge5 {[%clk 0:00:19.4]} 50. Raf1 {[%clk 0:00:02.1]}
50... Qh5+ {[%clk 0:00:18.9]} 51. Bh2 {[%clk 0:00:02.2]} 51... Rf4 {[%clk
0:00:15.1]} 0-1

[Event "Late-Titled-Tuesday-Blitz-December-26-2023"]
[Site "Chess.com"]
[Date "2023.12.26"]
[Round "7"]
[White "Crasyhealer"]
[Black "Alexei_Gubajdullin"]
[Result "1-0"]
[WhiteElo "2488"]
[BlackElo "2593"]
[TimeControl "180+1"]
[EndTime "15:17:56 PST"]
[Termination "Crasyhealer won on time"]

1. c4 {[%clk 0:02:58.9]} 1... Nf6 {[%clk 0:02:57.7]} 2. Nc3 {[%clk 0:02:57.5]}
2... c5 {[%clk 0:02:57.3]} 3. e4 {[%clk 0:02:57.8]} 3... Nc6 {[%clk 0:02:54.7]}
4. Nf3 {[%clk 0:02:53.7]} 4... d6 {[%clk 0:02:53.9]} 5. d4 {[%clk 0:02:53.6]}
5... Bg4 {[%clk 0:02:50.4]} 6. d5 {[%clk 0:02:50.7]} 6... Nd4 {[%clk 0:02:50.3]}
7. Be2 {[%clk 0:02:43.9]} 7... Bxf3 {[%clk 0:02:48.4]} 8. Bxf3 {[%clk
0:02:44.8]} 8... g6 {[%clk 0:02:47.3]} 9. Be3 {[%clk 0:02:44.5]} 9... e5 {[%clk
0:02:42.4]} 10. dxe6 {[%clk 0:02:35.8]} 10... Nxe6 {[%clk 0:02:42.3]} 11. Nd5
{[%clk 0:02:34.9]} 11... Bg7 {[%clk 0:02:41.5]} 12. e5 {[%clk 0:02:08.5]} 12...
Nxd5 {[%clk 0:02:26.1]} 13. cxd5 {[%clk 0:02:03.5]} 13... Nd4 {[%clk 0:02:25.6]}
14. Bxd4 {[%clk 0:02:00.3]} 14... cxd4 {[%clk 0:02:25.4]} 15. e6 {[%clk
0:01:18.2]} 15... O-O {[%clk 0:02:13.8]} 16. O-O {[%clk 0:01:16.2]} 16... Qg5
{[%clk 0:01:53.3]} 17. Qb3 {[%clk 0:01:10.6]} 17... b5 {[%clk 0:01:45.8]} 18. g3
{[%clk 0:00:51]} 18... Rac8 {[%clk 0:01:38.8]} 19. Bg2 {[%clk 0:00:44.4]} 19...
Rc5 {[%clk 0:01:32.8]} 20. Rae1 {[%clk 0:00:43.8]} 20... Qd2 {[%clk 0:01:20.5]}
21. a4 {[%clk 0:00:34.9]} 21... bxa4 {[%clk 0:01:16.6]} 22. Qxa4 {[%clk
0:00:33.6]} 22... Rcc8 {[%clk 0:00:46.8]} 23. e7 {[%clk 0:00:24.7]} 23... Rfe8
{[%clk 0:00:46.5]} 24. Bh3 {[%clk 0:00:25.2]} 24... f5 {[%clk 0:00:36.1]} 25.
Qd7 {[%clk 0:00:21.9]} 25... d3 {[%clk 0:00:28.2]} 26. Qxd6 {[%clk 0:00:21.5]}
26... Qxb2 {[%clk 0:00:27.8]} 27. Qe6+ {[%clk 0:00:21.5]} 27... Kh8 {[%clk
0:00:27.9]} 28. Qxc8 {[%clk 0:00:20]} 28... Rxc8 {[%clk 0:00:26.9]} 29. e8=Q+
{[%clk 0:00:19.6]} 29... Rxe8 {[%clk 0:00:27.1]} 30. Rxe8+ {[%clk 0:00:20.5]}
30... Bf8 {[%clk 0:00:27.1]} 31. Rxf8+ {[%clk 0:00:21.1]} 31... Kg7 {[%clk
0:00:27.3]} 32. Re8 {[%clk 0:00:19.2]} 32... d2 {[%clk 0:00:26.6]} 33. d6 {[%clk
0:00:19.7]} 33... Qc1 {[%clk 0:00:25.1]} 34. d7 {[%clk 0:00:18.7]} 34... d1=Q
{[%clk 0:00:24.8]} 35. d8=Q {[%clk 0:00:18.3]} 35... Qxd8 {[%clk 0:00:24.3]} 36.
Rxd8 {[%clk 0:00:19.2]} 36... Qc7 {[%clk 0:00:22.7]} 37. Rfd1 {[%clk 0:00:16.5]}
37... Kh6 {[%clk 0:00:19.2]} 38. R8d7 {[%clk 0:00:16.5]} 38... Qc5 {[%clk
0:00:18.7]} 39. Bf1 {[%clk 0:00:17]} 39... f4 {[%clk 0:00:18.1]} 40. R7d5 {[%clk
0:00:17]} 40... Qc7 {[%clk 0:00:17.2]} 41. R1d4 {[%clk 0:00:16.7]} 41... fxg3
{[%clk 0:00:14]} 42. hxg3 {[%clk 0:00:17.6]} 42... Qb6 {[%clk 0:00:13.4]} 43.
Rh4+ {[%clk 0:00:17.6]} 43... Kg7 {[%clk 0:00:13.4]} 44. Bh3 {[%clk 0:00:17.9]}
44... h5 {[%clk 0:00:12.7]} 45. Rd7+ {[%clk 0:00:16.9]} 45... Kh6 {[%clk
0:00:12.2]} 46. Rhd4 {[%clk 0:00:17.8]} 46... Qb1+ {[%clk 0:00:10.7]} 47. Bf1
{[%clk 0:00:18]} 47... a5 {[%clk 0:00:10.1]} 48. Ra7 {[%clk 0:00:17]} 48... Qe1
{[%clk 0:00:04.8]} 49. Rdd7 {[%clk 0:00:15.9]} 49... h4 {[%clk 0:00:03.7]} 50.
Rh7+ {[%clk 0:00:15.5]} 50... Kg5 {[%clk 0:00:03.9]} 51. Rxh4 {[%clk 0:00:16.1]}
51... Qc3 {[%clk 0:00:03]} 52. Ra4 {[%clk 0:00:15.7]} 52... Qe1 {[%clk
0:00:02.4]} 53. R7xa5+ {[%clk 0:00:16.6]} 53... Kh6 {[%clk 0:00:02.3]} 54. Ra6
{[%clk 0:00:16.7]} 54... Qc3 {[%clk 0:00:01.7]} 55. Rg4 {[%clk 0:00:17.1]} 1-0

[Event "Late-Titled-Tuesday-Blitz-December-26-2023"]
[Site "Chess.com"]
[Date "2023.12.26"]
[Round "7"]
[White "Defenstrator"]
[Black "Veleamater"]
[Result "1-0"]
[WhiteElo "2465"]
[BlackElo "2346"]
[TimeControl "180+1"]
[EndTime "15:18:05 PST"]
[Termination "Defenstrator won by checkmate"]

1. g3 {[%clk 0:03:00.5]} 1... g6 {[%clk 0:02:59]} 2. Bg2 {[%clk 0:03:00]} 2...
Bg7 {[%clk 0:02:59.6]} 3. Nf3 {[%clk 0:02:58.9]} 3... d6 {[%clk 0:03:00.1]} 4.
O-O {[%clk 0:02:59.1]} 4... Nf6 {[%clk 0:02:59.4]} 5. d3 {[%clk 0:02:57.7]} 5...
O-O {[%clk 0:02:59.9]} 6. e4 {[%clk 0:02:57.1]} 6... Nc6 {[%clk 0:03:00.4]} 7.
a4 {[%clk 0:02:50.7]} 7... e5 {[%clk 0:03:00.5]} 8. a5 {[%clk 0:02:50]} 8... a6
{[%clk 0:02:57.9]} 9. c3 {[%clk 0:02:45.9]} 9... h6 {[%clk 0:02:57.9]} 10. b4
{[%clk 0:02:43.5]} 10... Nd7 {[%clk 0:02:58.4]} 11. Na3 {[%clk 0:02:34.4]} 11...
Kh7 {[%clk 0:02:58.4]} 12. Nc2 {[%clk 0:02:30.4]} 12... f5 {[%clk 0:02:58.1]}
13. exf5 {[%clk 0:02:30.9]} 13... gxf5 {[%clk 0:02:58.2]} 14. Nh4 {[%clk
0:02:22.4]} 14... Ne7 {[%clk 0:02:57.3]} 15. d4 {[%clk 0:02:07.3]} 15... Ng6
{[%clk 0:02:53.1]} 16. Nxg6 {[%clk 0:02:01.3]} 16... Kxg6 {[%clk 0:02:53]} 17.
dxe5 {[%clk 0:01:49.4]} 17... dxe5 {[%clk 0:02:50.7]} 18. Be3 {[%clk 0:01:27.2]}
18... Nf6 {[%clk 0:02:48.9]} 19. Qe2 {[%clk 0:01:08.2]} 19... c6 {[%clk
0:02:48.2]} 20. Rad1 {[%clk 0:00:50.9]} 20... Qe8 {[%clk 0:02:47.9]} 21. Bc5
{[%clk 0:00:41.9]} 21... Rf7 {[%clk 0:02:44.7]} 22. Ne3 {[%clk 0:00:42.3]} 22...
Kh7 {[%clk 0:02:42.7]} 23. Nc4 {[%clk 0:00:41.5]} 23... Qg8 {[%clk 0:02:19.3]}
24. Nxe5 {[%clk 0:00:30.7]} 24... Ne4 {[%clk 0:02:14.8]} 25. Nxf7 {[%clk
0:00:27]} 25... Nxc5 {[%clk 0:02:14.8]} 26. Nxh6 {[%clk 0:00:18.5]} 26... Bxh6
{[%clk 0:01:51.3]} 27. Qe7+ {[%clk 0:00:17.2]} 27... Qg7 {[%clk 0:01:49]} 28.
Qxc5 {[%clk 0:00:17.6]} 28... Be6 {[%clk 0:01:47.6]} 29. Rfe1 {[%clk 0:00:16.2]}
29... Bf7 {[%clk 0:01:41.8]} 30. Rd7 {[%clk 0:00:15.3]} 30... Rf8 {[%clk
0:01:37.9]} 31. Qxf5+ {[%clk 0:00:15.7]} 31... Kg8 {[%clk 0:01:37.1]} 32. Ree7
{[%clk 0:00:14.2]} 32... Bc1 {[%clk 0:00:46.1]} 33. Bf1 {[%clk 0:00:06.1]} 33...
Bh6 {[%clk 0:00:35.6]} 34. Bc4 {[%clk 0:00:06.1]} 34... Bxc4 {[%clk 0:00:35.6]}
35. Rxg7+ {[%clk 0:00:06.6]} 35... Bxg7 {[%clk 0:00:36]} 36. Qg6 {[%clk
0:00:07.1]} 36... Bf7 {[%clk 0:00:34.9]} 37. Qd6 {[%clk 0:00:05.9]} 37... Bxc3
{[%clk 0:00:30.7]} 38. Rd8 {[%clk 0:00:05.7]} 38... Bg7 {[%clk 0:00:29.7]} 39.
Rxf8+ {[%clk 0:00:06]} 39... Bxf8 {[%clk 0:00:30.2]} 40. Qb8 {[%clk 0:00:06.7]}
40... Bc4 {[%clk 0:00:27.3]} 41. Qxb7 {[%clk 0:00:07.2]} 41... Bb5 {[%clk
0:00:27.7]} 42. h4 {[%clk 0:00:07.3]} 42... Bxb4 {[%clk 0:00:27.6]} 43. h5
{[%clk 0:00:06.1]} 43... Bf8 {[%clk 0:00:27.6]} 44. g4 {[%clk 0:00:05.8]} 44...
c5 {[%clk 0:00:27.9]} 45. g5 {[%clk 0:00:06]} 45... c4 {[%clk 0:00:28.4]} 46. h6
{[%clk 0:00:06.8]} 46... Be8 {[%clk 0:00:23.2]} 47. Qd5+ {[%clk 0:00:03.8]}
47... Bf7 {[%clk 0:00:23.1]} 48. Qe4 {[%clk 0:00:03.8]} 48... Kh8 {[%clk
0:00:16.5]} 49. g6 {[%clk 0:00:04.7]} 49... c3 {[%clk 0:00:11.8]} 50. gxf7
{[%clk 0:00:04.6]} 50... Bxh6 {[%clk 0:00:09.6]} 51. Qe8+ {[%clk 0:00:05]} 51...
Kh7 {[%clk 0:00:09.4]} 52. Qg8# {[%clk 0:00:05.1]} 1-0